bitfinex/quotes_ETHUSD_20240618
["timestamp","ask_amount","ask_price","bid_price","bid_amount"]
[1718681866954,2.11494215,3436.4,3435.5,2.2926]
[1718681867364,0.55,3436.6,3435.6,0.0487312]
[1718681867555,2.11507594,3436.5,3435.6,0.9137312]
[1718681869602,2.11507594,3436.5,3435.6,0.0487312]
[1718681869774,0.35300759,3436.4,3435.6,0.0487312]
[1718681870118,2.11507594,3436.3,3435.7,0.865]
[1718681870321,2.11507594,3436.2,3435.7,0.865]
[1718681870462,1.415,3436.7,3435.8,0.04878499]
[1718681870797,2.11510591,3436.6,3435.7,0.865]
[1718681871009,0.55,3436.5,3435.7,0.865]
[1718681871182,2.11510591,3436.4,3435.8,0.04883111]
[1718681871398,2.11510591,3436.4,3435.9,0.865]
[1718681871720,2.11503231,3436.3,3436.0,2.49185789]
[1718681871859,3.0,3436.8,3436.0,2.49185789]
[1718681872198,2.11501884,3436.7,3436.1,0.865]
[1718681872432,5.0723,3437.4,3436.5,0.865]
[1718681872433,2.11501884,3436.6,3436.5,0.865]
[1718681872562,7.43,3437.0,3436.5,0.865]
[1718681872761,2.29623634,3436.9,3436.5,0.865]
[1718681873056,2.29623634,3436.9,3436.6,0.04888873]
[1718681873057,2.11475124,3436.8,3436.6,0.04888873]
[1718681873264,3.08737487,3436.8,3436.1,0.865]
[1718681873462,2.11475124,3436.7,3436.0,2.4429]
[1718681874189,2.11475124,3436.7,3436.1,0.04881188]
[1718681878462,2.11475124,3436.6,3436.1,0.04881188]
[1718681878775,0.1814851,3436.9,3436.1,0.04881188]
[1718681878776,2.11475124,3436.5,3436.1,0.04881188]
[1718681878977,0.1814851,3436.9,3436.1,0.29798307]
[1718681879295,2.11486826,3436.8,3436.1,0.29798307]
[1718681879464,2.11486826,3436.8,3436.3,2.91009]
[1718681879660,2.11486826,3436.8,3436.2,2.2896]
[1718681880198,2.11486826,3436.8,3436.3,0.04880035]
[1718681880495,2.11486826,3436.8,3436.4,0.25875715]
[1718681880664,2.11486826,3436.8,3436.4,0.3075575]
[1718681881798,3.16356357,3437.4,3436.4,0.3075575]
[1718681881799,0.50356357,3437.4,3436.4,0.3075575]
[1718681882011,2.11451147,3437.3,3436.4,0.3075575]
[1718681882224,2.11451147,3437.2,3436.4,0.3075575]
[1718681882421,2.11451147,3437.1,3436.5,0.55655312]
[1718681882702,2.11451147,3437.0,3436.5,0.55655312]
[1718681882905,2.11451147,3436.9,3436.6,0.04837008]
[1718681883197,0.55,3437.7,3436.6,0.04837008]
[1718681883410,2.7638825,3437.6,3436.6,0.04837008]
[1718681883572,2.66451614,3437.5,3436.4,0.3169508]
[1718681883773,2.11451614,3437.4,3436.7,0.04835472]
[1718681884171,2.11451614,3437.4,3436.8,2.4164]
[1718681884376,3.50356357,3437.9,3436.9,0.05819285]
[1718681884377,2.11451614,3437.3,3436.9,0.05819285]
[1718681884677,7.43,3438.0,3437.3,2.90925]
[1718681884907,2.11398434,3437.9,3437.4,2.47457591]
[1718681885123,2.8684478,3438.5,3437.4,2.52294983]
[1718681885279,2.11397641,3438.4,3437.4,2.52294983]
[1718681885600,1.24124242,3438.3,3437.4,2.52294983]
[1718681885896,2.11397641,3438.2,3437.4,2.52294983]
[1718681887600,2.11397641,3438.1,3437.4,2.52294983]
[1718681887812,2.86843933,3438.5,3437.4,2.52294983]
[1718681888102,2.11398582,3438.4,3437.4,2.46477392]
[1718681888316,2.11398582,3438.4,3437.5,0.05817593]
[1718681888470,2.11398582,3438.4,3437.6,0.04805519]
[1718681888673,0.05817601,3438.3,3437.4,2.37663112]
[1718681888871,0.05817601,3438.3,3437.7,0.04645335]
[1718681889105,1.19682194,3438.3,3437.5,0.05817593]
[1718681889300,1.19682194,3438.3,3437.8,0.04645335]
[1718681889301,0.05817601,3438.2,3437.8,0.04645335]
[1718681889501,0.05817601,3438.2,3437.5,0.05817593]
[1718681889674,0.05817601,3438.2,3437.9,0.04645335]
[1718681889875,0.05817601,3438.2,3438.0,0.04642648]
[1718681890406,0.05817601,3438.2,3438.1,0.04642648]
[1718681890572,0.05817601,3438.2,3437.5,0.05817593]
[1718681890778,0.05817601,3438.2,3438.1,0.04642648]
[1718681891037,0.46470165,3438.2,3437.5,0.05817593]
[1718681891178,0.05817601,3438.2,3438.1,0.04642648]
[1718681891389,0.05817601,3438.2,3437.5,0.05817593]
[1718681891914,0.05817601,3438.2,3437.6,0.04542648]
[1718681892406,0.05817601,3438.2,3437.1,2.3517]
[1718681892796,0.05817601,3438.2,3437.2,0.0450578]
[1718681893314,0.46470165,3438.2,3437.2,3.01255917]
[1718681893615,0.05817601,3438.2,3437.3,2.2852]
[1718681893820,0.05817601,3438.4,3437.4,0.05817589]
[1718681894035,0.05817601,3438.4,3437.4,0.10329896]
[1718681894241,0.50332484,3438.8,3437.8,2.2852]
[1718681894380,0.05817601,3438.7,3437.8,2.2852]
[1718681894576,0.05817601,3438.7,3437.9,0.04502325]
[1718681894996,2.4477,3439.2,3437.9,0.10319369]
[1718681895230,0.05817601,3439.1,3437.9,0.10319369]
[1718681895548,0.2505876,3439.0,3438.0,2.90866]
[1718681895770,0.05817601,3438.9,3437.9,0.04502325]
[1718681895901,0.05817601,3438.9,3438.1,0.04501173]
[1718681896244,0.05817601,3438.9,3437.8,2.2852]
[1718681896411,0.05817601,3438.9,3438.2,0.04501173]
[1718681896600,0.33087636,3438.8,3437.9,2.90874]
[1718681896921,0.05817601,3438.9,3437.9,2.90874]
[1718681897298,0.05817601,3438.9,3438.0,0.04501173]
[1718681898618,2.2589,3438.8,3437.5,0.5297819]
[1718681898803,2.2589,3438.8,3437.4,2.4165]
[1718681898804,0.60817601,3438.7,3438.1,0.04501173]
[1718681899004,0.05817601,3438.7,3437.6,2.90898]
[1718681899326,0.05817601,3438.7,3437.8,2.90883]
[1718681899627,2.2589,3439.2,3438.0,2.90866]
[1718681899803,0.05817601,3439.1,3438.1,0.65022114]
[1718681899997,0.05817601,3439.1,3438.1,0.69512923]
[1718681902219,0.05817601,3439.1,3438.1,0.04490809]
[1718681902427,0.05817601,3439.1,3437.7,5.32541]
[1718681902428,0.55,3439.0,3437.7,5.32541]
[1718681902630,0.05817601,3438.9,3438.2,0.04490809]
[1718681902805,0.05817601,3438.9,3437.7,5.32541]
[1718681903000,0.05817601,3438.9,3438.3,0.04490809]
[1718681903203,0.05817601,3438.9,3437.7,5.32541]
[1718681903204,2.4058,3438.8,3437.7,5.32541]
[1718681903519,0.05817601,3438.7,3437.7,5.32541]
[1718681903838,0.05817601,3438.7,3437.8,0.04490809]
[1718681911371,0.05817601,3438.7,3437.9,2.90874]
[1718681911668,0.05817601,3438.7,3438.0,0.04471999]
[1718681911817,7.43,3439.3,3438.1,2.90855]
[1718681912171,0.50323302,3439.7,3439.0,2.90781]
[1718681912325,9.7959,3440.2,3439.3,2.90755]
[1718681912525,0.05817601,3440.1,3439.4,0.0581431]
[1718681912946,0.05817601,3440.1,3439.5,0.04465858]
[1718681913143,7.43,3440.2,3439.5,0.04465858]
[1718681913344,7.43,3440.2,3439.6,0.05814205]
[1718681913735,7.43,3440.2,3439.7,0.04440916]
[1718681913936,0.50306168,3440.6,3439.7,0.04440916]
[1718681914163,2.4944,3440.7,3439.4,2.90746]
[1718681914337,0.99244,3440.6,3439.4,2.90746]
[1718681914667,0.99244,3440.6,3439.5,0.04413683]
[1718681914847,0.05817601,3440.5,3439.5,0.04413683]
[1718681915226,0.05817601,3440.5,3439.5,0.10227573]
[1718681915637,0.05817601,3440.5,3439.5,0.04413683]
[1718681915860,0.05817601,3440.5,3439.5,3.55758633]
[1718681917157,0.05817601,3440.5,3439.6,2.3637]
[1718681917543,0.05817601,3440.5,3439.7,0.04347703]
[1718681918832,7.43,3440.8,3439.7,0.04347703]
[1718681918833,7.43,3440.8,3439.9,2.90701]
[1718681919190,7.43,3440.8,3440.0,0.05813163]
[1718681919662,7.43,3440.8,3440.1,0.04347319]
[1718681920071,7.43,3440.8,3440.1,0.40246699]
[1718681920392,7.43,3441.4,3440.2,2.4635]
[1718681920535,0.50289408,3441.8,3440.5,2.076]
[1718681920730,7.43,3442.0,3440.6,3.46863394]
[1718681921040,7.43,3442.0,3440.6,3.45386111]
[1718681921041,0.36933193,3441.9,3440.6,3.45386111]
[1718681921234,0.05817601,3441.8,3440.6,0.54742111]
[1718681921437,0.36933193,3441.7,3440.6,0.04334284]
[1718681921664,0.36933193,3441.7,3440.3,0.05812775]
[1718681921665,2.3546,3441.5,3440.3,0.05812775]
[1718681921831,0.05817601,3441.4,3440.7,0.04305921]
[1718681922034,0.05817601,3441.4,3440.3,0.05812775]
[1718681922232,0.05817601,3441.4,3440.8,0.04305921]
[1718681922475,0.2412776,3441.3,3440.2,2.4635]
[1718681922783,0.05817601,3441.2,3440.9,0.04305921]
[1718681923273,0.05817601,3441.2,3439.6,8.03936489]
[1718681923274,2.3263,3441.1,3439.6,7.43]
[1718681923471,0.05817601,3441.0,3439.3,2.3767]
[1718681923691,7.4334,3440.9,3439.7,0.04305921]
[1718681923963,2.2904,3440.7,3438.9,7.39789]
[1718681924267,2.2904,3440.5,3439.0,0.0416239]
[1718681924478,0.05817601,3440.4,3438.6,2.90815]
[1718681924686,0.60817601,3440.4,3439.1,0.0416239]
[1718681924964,0.60817601,3440.4,3438.5,2.90819]
[1718681924965,2.2877,3440.3,3438.5,2.90819]
[1718681925172,2.01206361,3440.2,3439.2,0.0416239]
[1718681925471,2.01206361,3440.2,3439.3,0.04163157]
[1718681925637,2.01206361,3440.2,3438.5,2.90819]
[1718681925638,5.01206361,3440.2,3438.7,2.90805]
[1718681925839,5.01206361,3440.2,3439.4,0.04163157]
[1718681926165,5.01206361,3440.2,3438.7,2.90805]
[1718681926351,0.72997636,3440.1,3438.8,0.05815209]
[1718681926544,0.05817601,3440.0,3438.8,3.00775366]
[1718681926867,0.72997636,3440.1,3438.9,2.9079]
[1718681926868,0.05817601,3440.1,3438.9,2.9079]
[1718681927040,0.05817601,3440.1,3438.8,2.11763157]
[1718681927240,0.05817601,3440.1,3439.2,2.90758]
[1718681927650,2.2877,3440.3,3439.3,2.96569149]
[1718681927847,2.2877,3440.3,3439.3,3.00778306]
[1718681928053,2.3072,3440.7,3439.3,0.04209157]
[1718681928251,0.05817601,3440.6,3439.3,0.04209157]
[1718681928448,0.05817601,3440.6,3439.6,2.9073]
[1718681928648,0.2365376,3440.5,3439.6,2.9073]
[1718681928841,0.05817601,3440.4,3439.7,0.04209157]
[1718681929676,2.3072,3440.7,3439.9,2.90703]
[1718681929847,2.3072,3440.7,3440.0,0.05812964]
[1718681930051,2.3072,3441.1,3440.1,2.90688]
[1718681930239,1.02373754,3440.9,3440.2,0.05812821]
[1718681930441,1.02373754,3440.9,3440.2,0.10014309]
[1718681930744,7.43,3441.0,3440.2,0.04201488]
[1718681931554,7.43,3441.0,3440.2,3.00694115]
[1718681931959,7.43,3441.0,3440.2,2.94881488]
[1718681932165,7.43,3441.0,3440.3,2.96483628]
[1718681932556,7.43,3441.0,3440.4,0.04180786]
[1718681932874,7.43,3441.0,3440.1,2.90687]
[1718681933076,7.43,3441.0,3440.5,0.04180786]
[1718681933239,7.43,3441.0,3440.2,1.020685]
[1718681933240,7.43,3441.0,3440.3,0.05812625]
[1718681933443,7.43,3441.0,3440.6,0.04180786]
[1718681933644,7.43,3441.0,3440.3,2.96483625]
[1718681933873,7.43,3441.0,3440.7,0.04180786]
[1718681934086,7.43,3441.7,3440.8,2.90629]
[1718681934248,2.89,3441.8,3440.9,0.05811681]
[1718681934450,0.05817601,3441.7,3440.9,0.05811681]
[1718681934807,0.05817601,3441.7,3441.0,0.0417542]
[1718681934808,0.59299361,3441.7,3441.0,0.0417542]
[1718681935975,0.05817601,3441.7,3441.0,0.0417542]
[1718681936174,2.89,3441.8,3441.0,0.0417542]
[1718681937290,2.89,3441.8,3441.0,0.09987097]
[1718681937572,7.43,3442.2,3441.2,2.90594]
[1718681937869,7.43,3442.2,3441.3,0.09933089]
[1718681938255,0.05817601,3442.1,3441.3,0.09933089]
[1718681938444,0.05817601,3442.1,3441.3,0.04122139]
[1718681938648,0.05817601,3442.1,3441.4,0.04095703]
[1718681938999,0.05817601,3442.1,3441.1,0.05810954]
[1718681939294,0.05817601,3442.3,3441.1,5.96411954]
[1718681939449,0.05817601,3442.3,3441.2,0.92792901]
[1718681939649,0.05817601,3442.2,3441.3,0.05810954]
[1718681940269,0.05817601,3442.2,3441.4,0.04091106]
[1718681940488,0.05817601,3442.2,3441.4,0.09902005]
[1718681941001,0.05817601,3442.3,3441.5,2.9057]
[1718681941177,7.43,3442.6,3441.6,0.87740323]
[1718681941382,7.43,3442.6,3441.7,2.90552]
[1718681941693,7.43,3442.6,3441.8,0.0581022]
[1718681941903,2.076,3443.5,3441.8,0.0581022]
[1718681941904,7.43,3443.7,3442.7,2.90465]
[1718681942188,7.43,3443.7,3442.4,2.076]
[1718681942189,0.50254704,3444.1,3442.9,2.90452]
[1718681942393,0.05817601,3444.0,3442.9,2.90452]
[1718681942554,0.05817601,3444.0,3443.0,0.04079233]
[1718681942954,0.05817601,3444.0,3442.6,3.0]
[1718681943161,1.16394255,3444.0,3442.7,0.590483]
[1718681943458,1.16394255,3444.0,3442.8,0.04079233]
[1718681943673,0.05817601,3444.0,3442.9,2.90451]
[1718681943995,0.05817601,3444.1,3442.9,2.90451]
[1718681944196,0.05817601,3444.1,3443.0,0.04079233]
[1718681944398,0.05817601,3444.1,3443.0,2.94522233]
[1718681944699,0.05817601,3444.1,3443.0,4.09685986]
[1718681945995,0.05817601,3444.1,3443.0,0.04079233]
[1718681945996,5.5567,3443.9,3443.0,0.04079233]
[1718681946195,0.05817601,3443.8,3442.1,2.90514]
[1718681946405,3.067,3443.6,3441.7,2.3912]
[1718681946609,2.4473,3443.4,3442.2,0.03844462]
[1718681946902,2.4473,3443.4,3441.7,4.0363879]
[1718681946903,0.60817601,3443.3,3442.3,0.03844462]
[1718681947195,0.05817601,3443.2,3441.7,4.4672]
[1718681947370,0.55,3443.1,3441.8,0.8192089]
[1718681947574,0.05817601,3443.0,3441.9,3.00189576]
[1718681947780,0.05817601,3443.1,3442.0,2.90525]
[1718681947966,0.05817601,3443.0,3442.0,2.90525]
[1718681948157,2.4473,3443.4,3442.0,2.90525]
[1718681948396,2.4473,3443.4,3442.1,0.70143351]
[1718681948397,2.99203,3443.4,3442.1,0.70143351]
[1718681949462,0.55,3443.3,3442.1,0.03844462]
[1718681950008,0.55,3443.3,3441.8,6.7246489]
[1718681950375,0.55,3443.3,3441.9,0.09654385]
[1718681950700,2.99203,3443.4,3441.9,3.00183385]
[1718681950875,0.55,3443.3,3441.9,0.03844462]
[1718681951081,0.654203,3443.2,3441.9,0.87092997]
[1718681951422,0.55,3443.1,3441.9,0.03844462]
[1718681952205,0.55,3443.1,3441.6,2.90562]
[1718681952206,0.55,3443.1,3441.7,0.05810387]
[1718681952663,0.55,3443.1,3441.6,2.90562]
[1718681952664,0.55,3443.1,3441.8,0.03844462]
[1718681953305,2.2615,3443.0,3441.8,0.03844462]
[1718681953489,0.55,3442.9,3441.3,5.076]
[1718681953694,0.64285,3442.8,3441.9,0.03844462]
[1718681953895,0.64285,3442.8,3441.5,2.90563]
[1718681954079,0.55,3442.9,3442.0,0.03844462]
[1718681954266,0.55,3442.9,3441.6,0.05810386]
[1718681954465,0.55,3442.9,3442.1,0.03844462]
[1718681954719,0.55,3442.9,3441.4,1.033725]
[1718681954929,0.55,3442.9,3442.2,0.03844462]
[1718681954930,3.55,3442.9,3442.2,0.03844462]
[1718681955236,3.55,3442.9,3441.4,2.90576]
[1718681955388,3.55,3442.9,3441.3,2.90586]
[1718681955592,3.55,3442.9,3441.1,2.90597]
[1718681955593,3.55,3442.9,3441.4,0.03844462]
[1718681955788,3.55,3442.9,3441.2,3.0]
[1718681956061,0.88785,3442.8,3441.3,0.62905662]
[1718681956264,2.3371,3442.6,3441.3,0.03844462]
[1718681956554,2.3371,3442.5,3441.3,0.03844462]
[1718681956693,3.617,3442.4,3440.5,2.90655]
[1718681956894,3.617,3442.4,3440.6,4.98245]
[1718681957089,3.0,3442.3,3440.6,5.01961313]
[1718681957356,0.55,3442.4,3441.1,2.906]
[1718681957635,0.55,3442.4,3441.2,0.05811117]
[1718681957803,0.55,3442.4,3441.2,0.09599407]
[1718681958008,2.3371,3442.5,3441.3,0.05811243]
[1718681958206,2.3371,3442.5,3441.2,2.90595]
[1718681958405,2.3371,3442.5,3441.3,0.6190829]
[1718681958859,2.3371,3442.5,3441.3,0.0378829]
[1718681959336,2.3371,3442.5,3441.3,2.9436929]
[1718681959544,0.50274549,3442.8,3441.4,8.43179978]
[1718681959698,9.7671,3442.9,3441.5,1.01041191]
[1718681959898,9.7671,3442.9,3441.4,3.0]
[1718681959899,11.04381,3442.9,3441.6,0.67272902]
[1718681960131,0.50274549,3442.8,3441.6,0.71061192]
[1718681960354,0.50274549,3442.8,3441.6,0.0378829]
[1718681960554,3.50274549,3442.8,3441.6,0.0378829]
[1718681961037,3.50277358,3442.8,3441.7,0.0378829]
[1718681961233,3.50277358,3442.8,3441.2,0.05811034]
[1718681961234,0.55,3442.7,3441.2,0.05811034]
[1718681961403,3.50277358,3442.8,3441.3,2.94230563]
[1718681961749,3.50277358,3442.8,3441.4,0.88483356]
[1718681962044,3.50277358,3442.8,3441.1,3.0]
[1718681962239,3.50277358,3442.8,3441.0,7.98212]
[1718681962753,3.50277358,3442.8,3441.1,1.0469524]
[1718681962929,0.55,3442.7,3441.1,0.03651563]
[1718681963853,2.3925,3442.6,3441.1,0.03651563]
[1718681964153,1.14425,3442.5,3441.2,1.04246356]
[1718681964369,0.55,3442.5,3441.2,1.04246356]
[1718681964548,0.55,3442.5,3441.3,0.03656159]
[1718681965843,0.55,3442.5,3441.3,0.09467485]
[1718681966045,0.50277358,3443.0,3441.6,2.2569]
[1718681966046,2.92577358,3443.0,3441.6,2.2569]
[1718681966255,2.423,3443.0,3441.8,2.90545]
[1718681966544,2.423,3443.0,3441.7,3.45834859]
[1718681966736,2.423,3443.0,3441.7,3.421787]
[1718681966931,2.423,3443.0,3441.8,3.858549]
[1718681967654,2.423,3443.0,3441.8,0.89500029]
[1718681967949,2.423,3443.0,3441.9,0.05809874]
[1718681968246,2.423,3443.0,3441.8,0.8584387]
[1718681968542,2.423,3443.0,3442.0,0.03656159]
[1718681968915,2.423,3443.0,3441.8,0.8584387]
[1718681969111,2.423,3443.0,3442.1,0.03656159]
[1718681969316,2.423,3443.0,3441.9,0.36315957]
[1718681969851,2.423,3443.0,3442.0,0.03656159]
[1718681970534,0.55,3442.9,3441.7,0.516257]
[1718681970736,0.55,3442.9,3442.1,0.03638546]
[1718681970917,0.55,3442.9,3441.3,5.90587]
[1718681971254,2.423,3443.0,3441.6,2.90556]
[1718681971833,2.423,3443.0,3441.7,0.03638546]
[1718681972248,2.423,3443.0,3441.9,2.90531]
[1718681972435,2.423,3443.0,3441.7,2.99999616]
[1718681972436,2.423,3443.0,3442.0,3.55390925]
[1718681972612,2.423,3443.0,3442.1,0.03638546]
[1718681973955,2.423,3443.0,3442.0,2.90528]
[1718681974155,2.423,3443.0,3442.2,0.03638546]
[1718681974338,2.423,3443.0,3441.7,2.90549]
[1718681974538,2.423,3443.0,3442.3,0.03638546]
[1718681974745,2.423,3443.0,3441.9,2.90536]
[1718681974951,2.423,3443.0,3442.4,0.03638546]
[1718681975250,2.423,3443.0,3441.9,2.90536]
[1718681975251,2.423,3443.0,3442.5,0.03638546]
[1718681975459,2.423,3443.0,3441.9,2.90536]
[1718681975658,2.423,3443.0,3442.6,0.03638546]
[1718681975824,2.423,3443.0,3442.0,0.9599584]
[1718681976026,2.423,3443.0,3442.1,0.09448392]
[1718681976355,2.423,3443.0,3442.1,0.03638546]
[1718681981142,2.11114455,3442.9,3442.1,0.03638546]
[1718681981460,2.423,3443.0,3442.1,0.03638546]
[1718681981461,2.11122312,3442.8,3442.1,0.03638546]
[1718681981661,2.11122312,3442.7,3441.0,2.9061]
[1718681981850,5.15332312,3442.6,3441.1,2.90603]
[1718681982164,2.11122312,3442.5,3441.2,0.32541566]
[1718681982963,2.2622,3442.3,3441.2,0.32541566]
[1718681983161,2.11122312,3442.2,3441.2,0.32541566]
[1718681983533,2.302,3442.8,3441.5,2.076]
[1718681983863,2.11135613,3442.7,3441.6,2.96372322]
[1718681984063,2.11135613,3442.7,3441.7,3.94187832]
[1718681984264,2.11135613,3442.7,3441.8,0.05810304]
[1718681984631,2.11135613,3442.7,3441.9,0.03500411]
[1718681985659,2.11135613,3442.7,3441.5,2.076]
[1718681985861,2.11135613,3442.7,3442.0,0.03490455]
[1718681986061,2.11135613,3442.7,3441.5,3.0]
[1718681986062,2.55269174,3442.7,3441.5,3.0]
[1718681986267,2.11135613,3442.6,3442.1,0.03373519]
[1718681986469,2.11135613,3442.6,3441.4,5.4183]
[1718681986675,2.11135613,3442.6,3442.2,0.03373902]
[1718681986858,2.11135613,3442.6,3441.4,3.0]
[1718681987182,2.11135613,3442.6,3442.3,0.03373902]
[1718681987378,2.11135613,3442.6,3441.5,0.6196463]
[1718681987863,2.11135613,3442.6,3441.6,0.03383475]
[1718681989938,8.1014,3442.5,3441.6,0.03383475]
[1718681990141,2.4134,3442.3,3440.6,2.90646]
[1718681990376,2.66135613,3442.2,3441.7,0.03387688]
[1718681990566,2.11135613,3442.1,3440.8,0.05811856]
[1718681990865,0.55,3442.0,3440.9,0.03388837]
[1718681991068,2.11135613,3441.9,3440.9,0.09200704]
[1718681991266,2.11135613,3441.8,3440.9,0.54132707]
[1718681991460,2.11135613,3441.7,3441.0,0.05811446]
[1718681991656,3.0,3442.2,3441.2,2.90588]
[1718681991863,2.11160412,3442.1,3441.1,2.2884]
[1718681992059,2.11160412,3442.0,3441.3,0.03407989]
[1718681992265,2.91612982,3442.7,3441.3,0.73045099]
[1718681992266,2.11160412,3441.9,3441.3,0.73045099]
[1718681992470,3.0,3442.6,3441.4,0.03407989]
[1718681992655,2.11160414,3442.5,3441.4,0.03407989]
[1718681993606,2.4134,3442.4,3441.4,0.03407989]
[1718681993906,2.66160414,3442.3,3441.4,0.03407989]
[1718681994110,5.61910455,3442.2,3441.0,2.076]
[1718681994254,2.11160414,3442.1,3441.5,0.03442838]
[1718681994447,2.4134,3442.4,3441.1,2.90602]
[1718681994448,2.11160414,3442.0,3441.1,2.90602]
[1718681994672,2.4134,3442.4,3441.2,0.09253725]
[1718681996475,2.4134,3442.4,3441.2,0.03442838]
[1718681996670,3.03,3442.6,3440.9,2.9062]
[1718681996880,3.03,3442.6,3441.3,0.03434028]
[1718681997181,3.03,3442.6,3441.3,2.90583]
[1718681997386,3.03,3442.6,3441.4,0.03434028]
[1718681999254,3.03,3442.6,3441.0,3.69345954]
[1718681999449,3.03,3442.6,3441.1,0.03434028]
[1718681999672,1.34619429,3442.5,3441.1,0.03434028]
[1718681999872,2.9452,3442.4,3441.1,0.03434028]
[1718682001996,2.3952,3442.4,3441.1,0.09245269]
[1718682002191,2.3952,3442.4,3441.1,2.99849269]
[1718682002394,2.3952,3442.4,3441.2,0.67858522]
[1718682002597,2.3952,3442.4,3441.3,0.05810869]
[1718682002769,2.3952,3442.4,3441.3,0.03440539]
[1718682003694,2.3952,3442.4,3441.0,0.78735954]
[1718682003882,2.3952,3442.4,3441.4,0.03438623]
[1718682004066,2.9849943,3442.4,3441.0,0.78735954]
[1718682004260,2.9849943,3442.4,3441.1,0.03438623]
[1718682004519,2.4261,3442.2,3441.1,0.03438623]
[1718682004796,2.4261,3442.2,3441.1,0.09250032]
[1718682005296,2.4261,3442.2,3441.1,0.03438623]
[1718682005493,2.4261,3442.2,3441.2,0.67279458]
[1718682005703,2.4261,3442.2,3441.2,0.70719613]
[1718682005905,2.4261,3442.2,3441.2,0.03440155]
[1718682006119,2.4261,3442.2,3440.4,2.4211]
[1718682006120,2.4261,3441.9,3440.4,2.4211]
[1718682006263,2.4261,3441.9,3441.3,0.03440155]
[1718682006467,1.09881,3441.8,3440.4,2.4211]
[1718682006665,1.09881,3441.8,3440.5,0.03444752]
[1718682007986,2.4261,3441.7,3440.5,0.03444752]
[1718682008275,0.55,3441.6,3440.5,0.03444752]
[1718682010269,0.55,3441.6,3440.5,0.09257244]
[1718682010471,0.55,3441.6,3440.5,0.69250968]
[1718682010691,2.4261,3441.7,3440.5,0.69250968]
[1718682010864,2.4261,3441.7,3440.6,2.4169]
[1718682011068,0.50280356,3442.0,3440.6,2.4169]
[1718682011069,0.50280356,3442.0,3441.0,2.90609]
[1718682011264,9.706,3442.1,3441.1,0.0581134]
[1718682011486,2.276,3442.1,3441.2,0.03453181]
[1718682011695,2.276,3442.1,3441.2,0.69251546]
[1718682011875,2.276,3442.1,3441.2,0.09264194]
[1718682012074,0.50280356,3442.4,3441.2,0.09264194]
[1718682012075,2.96710356,3442.4,3441.2,0.09264194]
[1718682012279,2.4643,3442.4,3441.2,0.09264194]
[1718682012973,3.0,3442.5,3441.3,2.3773]
[1718682013170,0.50279281,3442.6,3441.6,2.076]
[1718682013372,7.43,3443.2,3442.0,4.9812]
[1718682013574,0.50279281,3443.5,3442.1,0.05809482]
[1718682013775,5.62691873,3443.6,3442.1,0.09262663]
[1718682014082,1.9569594,3443.5,3442.1,0.09262663]
[1718682014297,1.9569594,3443.5,3442.1,0.05809482]
[1718682014892,1.9569594,3443.5,3442.0,2.076]
[1718682015099,3.062,3443.4,3442.2,0.03435564]
[1718682015287,3.062,3443.4,3441.6,2.076]
[1718682015288,1.06458781,3443.3,3441.6,2.076]
[1718682015489,1.06458781,3443.3,3442.3,0.03435564]
[1718682015705,1.06458781,3443.3,3441.6,2.076]
[1718682016008,1.06458781,3443.3,3442.4,0.03435564]
[1718682016212,0.41265878,3443.2,3441.6,2.076]
[1718682016401,0.55,3443.1,3441.6,2.076]
[1718682016596,0.55,3443.1,3441.7,0.03394198]
[1718682016803,0.55,3443.1,3441.7,3.03394198]
[1718682018907,2.281,3443.0,3441.7,0.03394198]
[1718682019115,2.48372466,3443.0,3441.7,0.03394198]
[1718682019714,2.281,3443.0,3441.7,2.99752325]
[1718682019889,5.281,3443.4,3442.0,2.90527]
[1718682020094,3.0,3443.3,3442.1,0.05809514]
[1718682020300,2.281,3443.4,3442.1,0.09203712]
[1718682020696,5.343,3443.4,3442.1,0.03394198]
[1718682020881,4.35816187,3443.3,3441.6,5.90561]
[1718682021082,4.35816187,3443.3,3441.7,0.03394198]
[1718682021308,0.55,3443.2,3441.6,5.90561]
[1718682021621,2.281,3443.4,3442.1,2.4649]
[1718682021796,3.16261873,3443.6,3442.3,2.90502]
[1718682021985,2.66,3443.6,3442.4,0.05808989]
[1718682022316,2.66,3443.6,3442.5,0.50730366]
[1718682022478,2.66,3443.6,3442.6,0.05808702]
[1718682022679,2.66,3443.6,3442.7,0.03383478]
[1718682023094,2.66,3443.6,3442.1,2.4649]
[1718682023292,2.66,3443.6,3442.8,0.03383478]
[1718682023499,0.8894294,3443.5,3442.2,2.96318225]
[1718682023686,2.66,3443.6,3442.3,0.0580922]
[1718682024018,2.66,3443.6,3442.2,2.90509]
[1718682024019,2.66,3443.6,3442.4,0.03380798]
[1718682024518,2.66,3443.6,3442.1,2.4649]
[1718682024721,2.66,3443.6,3442.5,0.03378501]
[1718682024905,2.66,3443.6,3442.1,2.4649]
[1718682025081,1.7456294,3443.5,3442.6,0.03378501]
[1718682025280,1.7456294,3443.5,3442.2,1.044626]
[1718682025478,1.7456294,3443.5,3442.3,0.03378501]
[1718682025711,1.7456294,3443.5,3441.7,3.0]
[1718682026015,1.7456294,3443.5,3442.4,0.03368162]
[1718682026314,2.2837,3443.3,3441.7,3.0]
[1718682026495,0.55,3443.2,3442.5,0.03368162]
[1718682026695,0.55,3443.2,3441.7,3.0]
[1718682026895,0.55,3443.2,3442.6,0.03368162]
[1718682027200,0.55,3443.2,3441.7,3.0]
[1718682027400,0.36611012,3443.1,3441.8,1.044651]
[1718682027606,0.36611012,3443.1,3441.8,1.07833262]
[1718682028624,0.55,3443.0,3441.8,1.07833262]
[1718682029285,0.55,3443.0,3441.8,0.03368162]
[1718682030422,3.0,3443.2,3441.8,0.03368162]
[1718682030628,0.55,3443.1,3441.8,0.03368162]
[1718682031915,0.55,3443.1,3441.8,0.06291493]
[1718682035301,3.0,3443.2,3441.8,0.06291493]
[1718682035527,3.0,3443.2,3441.9,0.54333449]
[1718682035730,5.2837,3443.3,3441.9,0.60623411]
[1718682036262,8.3457,3443.3,3441.9,0.06289962]
[1718682036403,3.612,3443.2,3441.9,0.06289962]